fUST/lending_fUST_20250611
["ID","MTS","AMOUNT","RATE_DAILY","PERIOD"]
[365311704,1749593444794,-1029.45,0.00023287,4]
[365311705,1749593444803,-1514.05,0.00023287,4]
[365311706,1749593444812,-703.13,0.00023287,4]
[365311707,1749593444822,-460.0,0.00023287,4]
[365311708,1749593444831,-1714.83,0.00023287,4]
[365311709,1749593444840,-959.0,0.00023287,4]
[365311710,1749593444849,-151.0,0.000233,10]
[365311711,1749593444858,-151.0,0.000233,5]
[365311712,1749593444867,-717.908762,0.00023326,7]
[365311713,1749593444876,-2123.30623869,0.00023348,9]
[365311714,1749593444886,-159.54866634,0.00023397,2]
[365311715,1749593444897,-3000.0,0.000234,2]
[365311716,1749593444906,-1457.92,0.000234,7]
[365311717,1749593444915,-10104.36018122,0.000234,7]
[365311718,1749593444924,-10104.36018122,0.000234,7]
[365311719,1749593444933,-3000.0,0.0002341,2]
[365311720,1749593444945,-3000.0,0.0002342,2]
[365311721,1749593444954,-3000.0,0.0002343,2]
[365311722,1749593444963,-1500.0,0.00023436,2]
[365311723,1749593444973,-3000.0,0.0002344,2]
[365311724,1749593444983,-3000.0,0.0002345,2]
[365311725,1749593444992,-2123.30623869,0.00023452,9]
[365311726,1749593445001,-3000.0,0.0002346,2]
[365311727,1749593445011,-3000.0,0.0002347,2]
[365311728,1749593445021,-3000.0,0.0002348,2]
[365311729,1749593445031,-3000.0,0.0002349,2]
[365311730,1749593445041,-3000.0,0.000235,2]
[365311731,1749593445050,-3000.0,0.0002351,2]
[365311732,1749593445059,-4479.4,0.0002351,2]
[365311733,1749593445069,-3000.0,0.0002352,2]
[365311734,1749593445079,-3000.0,0.0002353,2]
[365311735,1749593445088,-3000.0,0.0002354,2]
[365311736,1749593445097,-3000.0,0.0002355,2]
[365311737,1749593445107,-2123.30623869,0.00023555,9]
[365311738,1749593445116,-3000.0,0.0002356,2]
[365311739,1749593445126,-340.0,0.00023561,4]
[365311740,1749593445136,-2092.59,0.00023561,4]
[365311741,1749593445147,-510.19,0.00023561,4]
[365311742,1749593445158,-811.26,0.00023561,4]
[365311743,1749593445168,-460.0,0.00023561,4]
[365311744,1749593445182,-460.0,0.00023561,4]
[365311745,1749593445197,-1756.84,0.00023561,4]
[365311746,1749593445207,-460.0,0.00023561,4]
[365311747,1749593445217,-460.0,0.00023561,4]
[365311748,1749593445227,-523.03,0.00023561,4]
[365311749,1749593445236,-460.0,0.00023561,2]
[365311750,1749593445246,-488.23490726,0.00023561,4]
[365311751,1749593445256,-460.0,0.00023561,4]
[365311752,1749593445265,-1789.2,0.00023561,4]
[365311753,1749593445275,-230.46,0.00023561,4]
[365311754,1749593445284,-1514.21,0.00023561,4]
[365311755,1749593445294,-460.0,0.00023561,4]
[365311756,1749593445303,-460.0,0.00023561,4]
[365311757,1749593445313,-2226.25,0.00023561,4]
[365311758,1749593445322,-814.7,0.00023561,4]
[365311759,1749593445331,-1385.44,0.00023561,4]
[365311760,1749593445346,-574.93,0.00023561,4]
[365311761,1749593445356,-460.0,0.00023561,4]
[365311762,1749593445365,-1768.98,0.00023561,4]
[365311763,1749593445375,-460.0,0.00023561,4]
[365311764,1749593445386,-1029.45,0.00023561,4]
[365311765,1749593445397,-1514.05,0.00023561,4]
[365311766,1749593445407,-703.13,0.00023561,4]
[365311767,1749593445416,-460.0,0.00023561,4]
[365311768,1749593445426,-1714.83,0.00023561,4]
[365311769,1749593445436,-959.0,0.00023561,4]
[365311770,1749593445445,-3000.0,0.0002357,2]
[365311771,1749593445455,-177.84780123,0.00023573,2]
[365311772,1749593445465,-600.0,0.00023573,2]
[365311773,1749593445475,-3000.0,0.0002358,2]
[365311774,1749593445484,-3000.0,0.0002359,2]
[365311775,1749593445494,-3000.0,0.000236,2]
[365311776,1749593445503,-43568.94,0.000236,2]
[365311777,1749593445512,-151.0,0.000236,10]
[365311778,1749593445521,-3000.0,0.0002361,2]
[365311779,1749593445531,-3000.0,0.0002362,2]
[365311780,1749593445540,-3000.0,0.0002363,2]
[365311781,1749593445549,-160.02203713,0.00023633,2]
[365311782,1749593445559,-1688.0,0.00023633,2]
[365311783,1749593445568,-151.0,0.00023633,2]
[365311784,1749593445577,-207.4,0.00023633,2]
[365311785,1749593445663,-2500.0,0.00023633,2]
[365311786,1749593445672,-1500.0,0.00023633,2]
[365311787,1749593445682,-2500.0,0.00023633,2]
[365311788,1749593445691,-1500.0,0.00023633,2]
[365311789,1749593445700,-2500.0,0.00023633,2]
[365311790,1749593445709,-5000.0,0.00023633,2]
[365311791,1749593445719,-2323.54423715,0.00023633,2]
[365311793,1749593445729,-1500.0,0.00023633,2]
[365311794,1749593445739,-1500.0,0.00023633,2]
[365311795,1749593445749,-1500.0,0.00023633,2]
[365311796,1749593445759,-1500.0,0.00023633,2]
[365311797,1749593445768,-1500.0,0.00023633,2]
[365311798,1749593445778,-1500.0,0.00023633,2]
[365311799,1749593445788,-431.86117909,0.00023633,2]
[365311800,1749593445798,-1317.3030559,0.00023633,2]
[365311801,1749593445807,-166.31295545,0.00023638,75]
[365311802,1749593445817,-3000.0,0.0002364,2]
[365311803,1749593445827,-3000.0,0.0002365,2]
[365311804,1749593445836,-2123.30623869,0.00023659,9]
[365311806,1749593445846,-3000.0,0.0002366,2]
[365311807,1749593445855,-3000.0,0.0002367,2]
[365311808,1749593445865,-3000.0,0.0002368,2]
[365311809,1749593445875,-1688.0,0.00023688,2]
[365311810,1749593445885,-3000.0,0.0002369,2]
[365311811,1749593445895,-159.54866634,0.00023699,2]
[365311812,1749593445905,-3000.0,0.000237,2]
[365311813,1749593445915,-3000.0,0.0002371,2]
[365311814,1749593445924,-3000.0,0.0002372,2]
[365311815,1749593445937,-3000.0,0.0002373,2]
[365311816,1749593445946,-3000.0,0.0002374,2]
[365311818,1749593445955,-3000.0,0.0002375,2]
[365311819,1749593445964,-3000.0,0.0002376,2]
[365311820,1749593445974,-2123.30623869,0.00023762,9]
[365311821,1749593445985,-3000.0,0.0002377,2]
[365311822,1749593445995,-3000.0,0.0002378,2]
[365311823,1749593446005,-3000.0,0.0002379,2]
[365311824,1749593446015,-795.79,0.000238,7]
[365311825,1749593446024,-3000.0,0.000238,2]
[365311826,1749593446033,-3000.0,0.0002381,2]
[365311827,1749593446043,-3000.0,0.0002382,2]
[365311828,1749593446052,-3000.0,0.0002383,2]
[365311829,1749593446061,-800.0,0.00023832,2]
[365311830,1749593446071,-2092.59,0.00023835,4]
[365311831,1749593446081,-510.19,0.00023835,4]
[365311832,1749593446091,-811.26,0.00023835,4]
[365311833,1749593446101,-460.0,0.00023835,4]
[365311834,1749593446110,-555.66378957,0.00023835,4]
[365311835,1749593446120,-1756.84,0.00023835,4]
[365311836,1749593446129,-460.0,0.00023835,4]
[365311837,1749593446139,-460.0,0.00023835,4]
[365311838,1749593446149,-523.03,0.00023835,4]
[365311839,1749593446158,-460.0,0.00023835,2]
[365311840,1749593446168,-151.0,0.00023835,7]
[365311841,1749593446178,-151.0,0.00023835,7]
[365311842,1749593446189,-151.0,0.00023835,7]
[365311843,1749593446199,-460.0,0.00023835,4]
[365311844,1749593446208,-1789.2,0.00023835,4]
[365311845,1749593446218,-1514.21,0.00023835,4]
[365311846,1749593446228,-460.0,0.00023835,4]
[365311847,1749593446238,-460.0,0.00023835,4]
[365311848,1749593446248,-2226.25,0.00023835,4]
[365311849,1749593446258,-1385.44,0.00023835,4]
[365311850,1749593446268,-814.7,0.00023835,4]
[365311851,1749593446278,-574.93,0.00023835,4]
[365311852,1749593446287,-460.0,0.00023835,4]
[365311853,1749593446297,-151.0,0.00023835,7]
[365311854,1749593446307,-151.0,0.00023835,7]
[365311855,1749593446318,-1768.98,0.00023835,4]
[365311856,1749593446327,-460.0,0.00023835,4]
[365311857,1749593446338,-1029.45,0.00023835,4]
[365311858,1749593446349,-1514.05,0.00023835,4]
[365311859,1749593446358,-703.13,0.00023835,4]
[365311860,1749593446368,-460.0,0.00023835,4]
[365311861,1749593446378,-1714.83,0.00023835,4]
[365311862,1749593446388,-959.0,0.00023835,4]
[365311863,1749593446398,-151.0,0.00023835,7]
[365311865,1749593446408,-4095.109001,0.0002384,2]
[365311866,1749593446418,-151.0,0.00023846,7]
[365311867,1749593446428,-2123.30623869,0.00023866,10]
[365311868,1749593446440,-151.0,0.000239,10]
[365311869,1749593446457,-194.83364991,0.00023955,2]
[365311870,1749593446475,-2123.30623869,0.00023969,10]
[365311871,1749593446490,-2000.0,0.00023984,2]
[365311872,1749593446503,-158.29,0.00024,2]
[365311873,1749593446518,-424.12530924,0.00024,7]
[365311874,1749593446533,-151.0,0.00024021,7]
[365311875,1749593446548,-159.41069738,0.00024027,2]
[365311876,1749593446564,-159.54866634,0.00024027,2]
[365311877,1749593446578,-2123.30623869,0.00024072,10]
[365311878,1749593446592,-11858.11761888,0.000241,10]
[365311879,1749593446606,-315.18454239,0.000241,10]
[365311880,1749593446619,-717.908762,0.00024109,7]
[365311881,1749593446635,-2092.59,0.00024109,4]
[365311882,1749593446650,-510.19,0.00024109,4]
[365311883,1749593446661,-811.26,0.00024109,4]
[365311884,1749593446674,-460.0,0.00024109,4]
[365311885,1749593446688,-151.0,0.00024109,7]
[365311886,1749593446703,-1756.84,0.00024109,4]
[365311887,1749593446718,-460.0,0.00024109,4]
[365311888,1749593446734,-151.0,0.00024109,7]
[365311889,1749593446749,-460.0,0.00024109,4]
[365311890,1749593446762,-523.03,0.00024109,4]
[365311891,1749593446774,-460.0,0.00024109,2]
[365311892,1749593446786,-460.0,0.00024109,4]
[365311893,1749593446802,-1789.2,0.00024109,4]
[365311894,1749593446816,-1514.21,0.00024109,4]
[365311895,1749593446827,-460.0,0.00024109,4]
[365311896,1749593446840,-460.0,0.00024109,4]
[365311897,1749593446854,-2226.25,0.00024109,4]
[365311898,1749593446866,-1385.44,0.00024109,4]
[365311899,1749593446876,-814.7,0.00024109,4]
[365311900,1749593446888,-574.93,0.00024109,4]
[365311901,1749593446900,-444.36568568,0.00024109,4]
[365311902,1749593446913,-1768.98,0.00024109,4]
[365311903,1749593446924,-486.95119073,0.00024109,4]
[365311904,1749593446938,-1029.45,0.00024109,4]
[365311905,1749593446950,-1514.05,0.00024109,4]
[365311906,1749593446962,-703.13,0.00024109,4]
[365311907,1749593446974,-460.0,0.00024109,4]
[365311908,1749593446987,-1714.83,0.00024109,4]
[365311909,1749593446999,-959.0,0.00024109,4]
[365311910,1749593447011,-1200.0,0.00024121,2]
[365311911,1749593447024,-2123.30623869,0.00024176,10]
[365311912,1749593447036,-232.38738173,0.00024181,2]
[365311913,1749593447049,-5000.0,0.00024181,2]
[365311914,1749593447061,-151.0,0.00024197,7]
[365311915,1749593447073,-75559.36,0.000242,7]
[365311916,1749593447085,-151.0,0.000242,7]
[365311917,1749593447097,-439.0150147,0.00024203,2]
[365311918,1749593447109,-129776.69,0.00024248,11]
[365311919,1749593447120,-2123.30623869,0.00024279,10]
[365311920,1749593447132,-225.0,0.00024298,2]
[365311921,1749593447144,-965.62,0.000243,2]
[365311922,1749593447157,-2160.0,0.000243,2]
[365311923,1749593447170,-653.0,0.000243,2]
[365311924,1749593447182,-405.0,0.000243,2]
[365311925,1749593447194,-159.54866634,0.00024329,2]
[365311926,1749593447205,-600.0,0.00024352,2]
[365311927,1749593447217,-151.0,0.00024373,7]
[365311928,1749593447229,-2123.30623869,0.00024383,11]
[365311929,1749593447242,-2092.59,0.00024383,4]
[365311930,1749593447255,-510.19,0.00024383,4]
[365311931,1749593447269,-811.26,0.00024383,4]
[365311932,1749593447279,-460.0,0.00024383,4]
[365311933,1749593447289,-1756.84,0.00024383,4]
[365311934,1749593447299,-460.0,0.00024383,4]
[365311935,1749593447308,-460.0,0.00024383,4]
[365311936,1749593447317,-523.03,0.00024383,4]
[365311937,1749593447327,-460.0,0.00024383,2]
[365311938,1749593447336,-460.0,0.00024383,4]
[365311939,1749593447346,-1789.2,0.00024383,4]
[365311940,1749593447355,-1514.21,0.00024383,4]
[365311941,1749593447365,-460.0,0.00024383,4]
[365311942,1749593447375,-460.0,0.00024383,4]
[365311943,1749593447384,-1385.44,0.00024383,4]
[365311944,1749593447393,-2226.25,0.00024383,4]
[365311945,1749593447404,-814.7,0.00024383,4]
[365311946,1749593447414,-574.93,0.00024383,4]
[365311947,1749593447424,-1768.98,0.00024383,4]
[365311948,1749593447433,-1029.45,0.00024383,4]
[365311949,1749593447590,-1514.05,0.00024383,4]
[365311950,1749593447606,-703.13,0.00024383,4]
[365311951,1749593447617,-460.0,0.00024383,4]
[365311952,1749593447627,-1714.83,0.00024383,4]
[365311953,1749593447637,-959.0,0.00024383,4]
[365311954,1749593447646,-151.0,0.000244,10]
[365311955,1749593447657,-151.0,0.000244,7]
[365311956,1749593447667,-151.0,0.000244,7]
[365311957,1749593447676,-151.0,0.000244,7]
[365311958,1749593447687,-312.600001,0.000244,7]
[365311959,1749593447696,-312.600001,0.000244,7]
[365311960,1749593447706,-1347.69737,0.00024401,3]
[365311961,1749593447715,-7825.36708508,0.00024434,2]
[365311962,1749593447725,-5000.0,0.00024434,2]
[365311963,1749593447734,-5000.0,0.00024434,2]
[365311964,1749593447744,-717.908762,0.00024434,7]
[365311965,1749593447753,-168.0,0.0002445,2]
[365311966,1749593447763,-5375.28,0.00024451,2]
[365311967,1749593447772,-439.0150148,0.00024462,2]
[365311968,1749593447783,-2123.30623869,0.00024486,11]
[365311969,1749593447793,-10208.0,0.000245,3]
[365311970,1749593447802,-160.0,0.000245,3]
[365311971,1749593447812,-834.9046531,0.000245,3]
[365311972,1749593447821,-842.5625,0.000245,3]
[365311973,1749593447832,-424.12530924,0.000245,3]
[365311974,1749593447842,-500.0,0.00024532,2]
[365311975,1749593447851,-166.75289989,0.00024548,2]
[365311976,1749593447861,-151.0,0.00024549,7]
[365311977,1749593447870,-2588.61757455,0.00024557,2]
[365311978,1749593447880,-282.0,0.00024583,2]
[365311979,1749593447889,-2588.6175745,0.00024586,2]
[365311980,1749593447898,-2123.30623869,0.0002459,11]
[365311981,1749593447907,-43568.94,0.000246,2]
[365311982,1749593447917,-1457.92,0.000246,7]
[365311983,1749593447927,-1215.05,0.000246,2]
[365311984,1749593447941,-151.0,0.000246,7]
[365311985,1749593447950,-213.532144,0.000246,7]
[365311986,1749593447959,-403.90568,0.000246,7]
[365311987,1749593447969,-403.90568,0.000246,7]
[365311988,1749593447979,-151.0,0.000246,7]
[365311989,1749593447989,-151.0,0.000246,7]
[365311990,1749593447999,-151.0,0.000246,7]
[365311991,1749593448011,-151.0,0.000246,7]
[365311992,1749593448021,-151.0,0.000246,7]
[365311993,1749593448030,-151.0,0.000246,7]
[365311994,1749593448040,-151.0,0.000246,7]
[365311995,1749593448049,-151.0,0.000246,7]
[365311996,1749593448059,-2588.6175745,0.00024615,2]
[365311997,1749593448069,-2588.6175745,0.00024645,2]
[365311998,1749593448079,-17300.31493004,0.0002465,60]
[365311999,1749593448089,-160.0,0.0002465,2]
[365312000,1749593448100,-97318.73644952,0.00024651,2]
[365312001,1749593448302,-308.33354368,0.00021095,4]
[365312002,1749593448311,-350.95717772,0.00021095,4]
[365312003,1749593448401,-109.04282228,0.00021095,4]
[365312004,1749593448411,-460.0,0.00021095,4]
[365312005,1749593448421,-156.23024451,0.00021095,4]
[365312006,1749593448433,-303.76975549,0.00021095,4]
[365312007,1749593448443,-600.0,0.00021095,4]
[365312008,1749593448452,-150.77024451,0.00021369,4]
[365312009,1749593499767,208.76863637,0.00019723,2]
[365312010,1749593499804,519.08136363,0.00019723,2]
[365312011,1749593539436,213.81429767,0.00024645,120]
[365312012,1749593582945,728.13,0.00019729,2]
[365312015,1749593620249,316.369826,0.00013699,2]
[365312016,1749593666884,732.22,0.00019883,2]
[365312018,1749593707957,3000.0,0.0002,30]
[365312019,1749593749960,802.42,0.00019733,2]
[365312020,1749593831483,723.68841701,0.00023233,120]
[365312021,1749593835189,799.29,0.00019725,2]
[365312022,1749593918252,815.37,0.00019927,2]
[365312023,1749593998524,700.0,0.00019968,2]
[365312024,1749594000032,812.63,0.00019914,2]
[365312028,1749594082193,821.17,0.00019897,2]
[365312029,1749594163863,819.72,0.00019901,2]
[365312030,1749594236804,1208.0,0.00024922,120]
[365312031,1749594244431,827.79,0.00019723,2]
[365312034,1749594325403,351.75531037,0.00019762,2]
[365312035,1749594325430,513.59468963,0.00019762,2]
[365312041,1749594393825,800.0,0.00019968,2]
[365312042,1749594406017,854.33,0.000198,2]
[365312056,1749594458774,1006.00665458,0.0002493,60]
[365312057,1749594468216,2073.22270481,0.00018,2]
[365312058,1749594488842,843.46,0.00019905,2]
[365312061,1749594513262,3961.33910556,0.00018,2]
[365312062,1749594513287,9045.9465,0.00018,2]
[365312063,1749594513314,2990.04571493,0.00018,2]
[365312065,1749594517542,1643.861391,0.0002,120]
[365312066,1749594517763,151.00000075,0.0002493,120]
[365312073,1749594572791,832.72,0.00019903,2]
[365312078,1749594612095,159.39070952,0.00023233,120]
[365312128,1749594632544,-4928.0398932,0.00020081,2]
[365312130,1749594632554,-180.310071,0.00020156,2]
[365312132,1749594632564,-316.369826,0.00020187,2]
[365312134,1749594632573,-1665.45,0.0002085,2]
[365312136,1749594632583,-172.91563984,0.00020994,2]
[365312138,1749594632592,-300.0,0.00020994,2]
[365312140,1749594632606,-1200.0,0.00020994,2]
[365312142,1749594632615,-3369.55488684,0.00020995,2]
[365312144,1749594632625,-800.0,0.00021064,2]
[365312146,1749594632634,-300.0,0.0002107,2]
[365312148,1749594632644,-571.77089163,0.00021073,2]
[365312150,1749594632654,-500.0,0.00021073,2]
[365312152,1749594632663,-500.0,0.00021073,2]
[365312154,1749594632673,-500.0,0.00021073,2]
[365312156,1749594632682,-500.0,0.00021073,2]
[365312158,1749594632692,-500.0,0.00021073,2]
[365312160,1749594632701,-500.0,0.00021073,2]
[365312162,1749594632710,-500.0,0.00021073,2]
[365312164,1749594632719,-500.0,0.00021073,2]
[365312166,1749594632729,-156.587,0.00021081,2]
[365312168,1749594632741,-759.9,0.00021085,3]
[365312170,1749594632752,-379.95,0.00021085,3]
[365312172,1749594632764,-189.97,0.00021085,3]
[365312174,1749594632774,-569.94,0.00021085,3]
[365312176,1749594632783,-178.281,0.00021085,2]
[365312178,1749594632792,-500.0,0.00021094,2]
[365312180,1749594632802,-500.0,0.00021094,2]
[365312182,1749594632812,-500.0,0.00021094,2]
[365312185,1749594632822,-500.0,0.00021094,2]
[365312188,1749594632831,-522.22942023,0.00021094,2]
[365312191,1749594632840,-500.0,0.00021094,2]
[365312193,1749594632850,-500.0,0.00021094,2]
[365312195,1749594632860,-500.0,0.00021094,2]
[365312197,1749594632869,-476.225,0.00021094,2]
[365312199,1749594632878,-500.0,0.00021094,2]
[365312201,1749594632888,-500.0,0.00021094,2]
[365312203,1749594632897,-500.0,0.00021094,2]
[365312205,1749594632907,-500.0,0.00021094,2]
[365312207,1749594632916,-500.0,0.00021094,2]
[365312209,1749594632926,-500.0,0.00021094,2]
[365312211,1749594632935,-500.0,0.00021094,2]
[365312213,1749594632944,-448.72590691,0.00021094,2]
[365312216,1749594632957,-51.27409309,0.00021094,2]
[365312218,1749594632966,-203.59590691,0.00021094,2]
[365312220,1749594632977,-296.40409309,0.00021094,2]
[365312222,1749594632987,-193.18845641,0.00021094,2]
[365312224,1749594632998,-306.81154359,0.00021094,2]
[365312226,1749594633007,-247.01908684,0.00021094,2]
[365312228,1749594633019,-252.98091316,0.00021094,2]
[365312231,1749594633029,-500.0,0.00021094,2]
[365312232,1749594633039,-91.77970695,0.00021094,2]
[365312236,1749594633061,-408.22029305,0.00021094,2]
[365312238,1749594633071,-500.0,0.00021094,2]
[365312240,1749594633081,-362.00813959,0.00021094,2]
[365312242,1749594633091,-500.0,0.00021094,2]
[365312243,1749594633100,-500.0,0.00021094,2]
[365312245,1749594633110,-500.0,0.00021094,2]
[365312247,1749594633120,-500.0,0.00021094,2]
[365312249,1749594633131,-391.79375514,0.00021095,4]
[365312251,1749594633140,-460.0,0.00021095,4]
[365312254,1749594633151,-440.0,0.00021095,4]
[365312256,1749594633161,-440.0,0.00021095,4]
[365312257,1749594633171,-430.0,0.00021095,4]
[365312260,1749594633180,-470.0,0.00021095,4]
[365312261,1749594633189,-430.0,0.00021095,4]
[365312263,1749594633199,-430.0,0.00021095,4]
[365312265,1749594633208,-470.0,0.00021095,4]
[365312267,1749594633218,-460.0,0.00021095,4]
[365312269,1749594633228,-470.0,0.00021095,4]
[365312271,1749594633238,-460.0,0.00021095,4]
[365312273,1749594633248,-490.0,0.00021095,4]
[365312275,1749594633259,-430.0,0.00021095,4]
[365312277,1749594633269,-268.05998819,0.00021095,4]
[365312279,1749594633279,-490.0,0.00021095,4]
[365312281,1749594633290,-460.0,0.00021095,4]
[365312283,1749594633300,-460.0,0.00021095,4]
[365312286,1749594633310,-460.0,0.00021095,4]
[365312287,1749594633320,-300.0,0.00021095,4]
[365312290,1749594633330,-407.68675523,0.00021095,4]
[365312291,1749594633340,-301.59274398,0.00021095,4]
[365312293,1749594633357,-290.0,0.00021095,4]
[365312295,1749594633367,-460.0,0.00021095,4]
[365312297,1749594633377,-162.04968254,0.00021095,4]
[365312299,1749594633387,-460.0,0.00021095,4]
[365312301,1749594633397,-430.0,0.00021095,4]
[365312303,1749594633408,-297.55222512,0.00021095,4]
[365312305,1749594633418,-460.0,0.00021095,4]
[365312307,1749594633430,-460.0,0.00021095,4]
[365312309,1749594633461,-430.0,0.00021095,4]
[365312312,1749594633472,-460.0,0.00021095,4]
[365312314,1749594633482,-547.602809,0.00021095,4]
[365312315,1749594633492,-460.0,0.00021095,4]
[365312318,1749594633502,-430.0,0.00021095,4]
[365312320,1749594633513,-430.0,0.00021095,4]
[365312321,1749594633522,-460.0,0.00021095,4]
[365312324,1749594633532,-460.0,0.00021095,4]
[365312325,1749594633542,-460.0,0.00021095,4]
[365312327,1749594633552,-460.0,0.00021095,4]
[365312329,1749594633562,-469.27666489,0.00021095,4]
[365312331,1749594633573,-330.0,0.00021095,4]
[365312333,1749594633584,-531.08677894,0.00021095,4]
[365312335,1749594633595,-460.0,0.00021095,4]
[365312337,1749594633609,-460.0,0.00021095,4]
[365312339,1749594633619,-430.0,0.00021095,4]
[365312341,1749594633629,-520.70669063,0.00021095,4]
[365312343,1749594633640,-440.0,0.00021095,4]
[365312345,1749594633650,-460.0,0.00021095,4]
[365312347,1749594633660,-358.53186603,0.00021095,4]
[365312349,1749594633671,-460.0,0.00021095,4]
[365312351,1749594633682,-450.0,0.00021095,4]
[365312353,1749594633692,-460.0,0.00021095,4]
[365312355,1749594633703,-178.77994709,0.00021095,4]
[365312357,1749594633714,-470.0,0.00021095,4]
[365312359,1749594633724,-404.72,0.00021095,4]
[365312361,1749594633735,-460.0,0.00021095,4]
[365312363,1749594633746,-460.0,0.00021095,4]
[365312365,1749594633759,-440.0,0.00021095,4]
[365312367,1749594633769,-440.0,0.00021095,4]
[365312369,1749594633779,-440.0,0.00021095,4]
[365312371,1749594633789,-460.0,0.00021095,4]
[365312383,1749594633921,-490.0,0.00021095,4]
[365312385,1749594633931,-430.0,0.00021095,4]
[365312388,1749594633941,-460.0,0.00021095,4]
[365312390,1749594633951,-260.0,0.00021095,4]
[365312392,1749594633964,-470.0,0.00021095,4]
[365312395,1749594633983,-440.0,0.00021095,4]
[365312397,1749594633995,-440.0,0.00021095,4]
[365312399,1749594634006,-430.0,0.00021095,4]
[365312401,1749594634016,-430.0,0.00021095,4]
[365312403,1749594634026,-440.0,0.00021095,4]
[365312405,1749594634036,-460.0,0.00021095,4]
[365312407,1749594634046,-460.0,0.00021095,4]
[365312409,1749594634056,-460.0,0.00021095,4]
[365312411,1749594634065,-460.0,0.00021095,4]
[365312413,1749594634076,-460.0,0.00021095,4]
[365312415,1749594634086,-460.0,0.00021095,4]
[365312417,1749594634101,-460.0,0.00021095,4]
[365312419,1749594634112,-460.0,0.00021095,4]
[365312421,1749594634122,-460.0,0.00021095,4]
[365312423,1749594634134,-536.41,0.00021095,4]
[365312425,1749594634144,-536.41,0.00021095,4]
[365312427,1749594634154,-536.41,0.00021095,4]
[365312430,1749594634165,-536.41,0.00021095,4]
[365312431,1749594634175,-536.41,0.00021095,4]
[365312434,1749594634185,-536.41,0.00021095,4]
[365312436,1749594634195,-210.0,0.00021095,4]
[365312438,1749594634206,-470.0,0.00021095,4]
[365312440,1749594634217,-460.0,0.00021095,4]
[365312442,1749594634227,-460.0,0.00021095,4]
[365312444,1749594634237,-460.0,0.00021095,4]
[365312446,1749594634248,-210.0,0.00021095,4]
[365312448,1749594634258,-460.0,0.00021095,4]
[365312450,1749594634269,-460.0,0.00021095,4]
[365312452,1749594634279,-460.0,0.00021095,4]
[365312454,1749594634290,-460.0,0.00021095,4]
[365312456,1749594634300,-460.0,0.00021095,4]
[365312458,1749594634311,-470.0,0.00021095,4]
[365312460,1749594634322,-460.0,0.00021095,4]
[365312462,1749594634332,-574.61,0.00021095,4]
[365312464,1749594634347,-460.0,0.00021095,4]
[365312466,1749594634357,-460.0,0.00021095,4]
[365312468,1749594634368,-430.84860009,0.00021095,4]
[365312470,1749594634379,-450.0,0.00021095,4]
[365312472,1749594634389,-460.0,0.00021095,4]
[365312474,1749594634400,-460.0,0.00021095,4]
[365312476,1749594634410,-430.0,0.00021095,4]
[365312478,1749594634421,-564.19115529,0.00021095,4]
[365312480,1749594634432,-460.0,0.00021095,4]